[Event "Titled Tuesday Blitz November 22 Late 2022"]
[White "Cannon, David"]
[Black "Stankovic, Ivan G"]
[WhiteFideId "3213110"]
[BlackFideId "902837"]
[WhiteElo "2013"]
[BlackElo "2226"]
[Result "1/2-1/2"]
[Round "03"]
[TimeControl "180+1"]
[Date "2022.11.23"]
[WhiteClock "0:00:14"]
[BlackClock "0:00:10"]

1. d4 {[%clk 0:02:57]}  d5 {[%clk 0:02:59]} 2. c4 {[%clk 0:02:54]}  c6 {[%clk 0:02:59]} 3. Nc3 {[%clk 0:02:52]}  Nf6 {[%clk 0:02:54]} 4. e3 {[%clk 0:02:42]}  a6 {[%clk 0:02:54]} 5. Nf3 {[%clk 0:02:37]}  Bf5 {[%clk 0:02:53]} 6. b3 {[%clk 0:02:37]}  e6 {[%clk 0:02:51]} 7. Bd3 {[%clk 0:02:35]}  Bb4 {[%clk 0:02:29]} 8. Bb2 {[%clk 0:02:31]}  Qa5 {[%clk 0:02:20]} 9. Qc2 {[%clk 0:02:27]}  Bxd3 {[%clk 0:01:49]} 10. Qxd3 {[%clk 0:02:23]}  Ne4 {[%clk 0:01:50]} 11. Rc1 {[%clk 0:02:13]}  Qxa2 {[%clk 0:01:43]} 12. Qc2 {[%clk 0:02:02]}  dxc4 {[%clk 0:01:29]} 13. bxc4 {[%clk 0:02:00]}  Nxc3 {[%clk 0:01:26]} 14. Bxc3 {[%clk 0:01:59]}  Qxc4 {[%clk 0:01:26]} 15. Ne5 {[%clk 0:01:53]}  Qxc3+ {[%clk 0:01:25]} 16. Qxc3 {[%clk 0:01:53]}  Bxc3+ {[%clk 0:01:25]} 17. Rxc3 {[%clk 0:01:54]}  Nd7 {[%clk 0:01:24]} 18. Nc4 {[%clk 0:01:54]}  Ke7 {[%clk 0:01:21]} 19. Na5 {[%clk 0:01:51]}  Rab8 {[%clk 0:01:09]} 20. Rb3 {[%clk 0:01:29]}  c5 {[%clk 0:01:05]} 21. O-O {[%clk 0:01:26]}  cxd4 {[%clk 0:01:02]} 22. exd4 {[%clk 0:01:25]}  Rhc8 {[%clk 0:00:58]} 23. Nxb7 {[%clk 0:01:19]}  Rc4 {[%clk 0:00:52]} 24. Rd1 {[%clk 0:01:17]}  Nf6 {[%clk 0:00:49]} 25. Kf1 {[%clk 0:01:07]}  Nd5 {[%clk 0:00:49]} 26. Nc5 {[%clk 0:00:44]}  Rxb3 {[%clk 0:00:46]} 27. Nxb3 {[%clk 0:00:45]}  Kd6 {[%clk 0:00:36]} 28. Ra1 {[%clk 0:00:43]}  Rc6 {[%clk 0:00:23]} 29. Nc5 {[%clk 0:00:37]}  Nc7 {[%clk 0:00:21]} 30. Ke2 {[%clk 0:00:35]}  Kd5 {[%clk 0:00:22]} 31. Nb3 {[%clk 0:00:29]}  Rc2+ {[%clk 0:00:20]} 32. Kd3 {[%clk 0:00:15]}  Rxf2 {[%clk 0:00:19]} 33. Ra5+ {[%clk 0:00:16]}  Kd6 {[%clk 0:00:19]} 34. g3 {[%clk 0:00:12]}  Rxh2 {[%clk 0:00:19]} 35. Nc5 {[%clk 0:00:12]}  Rg2 {[%clk 0:00:20]} 36. Kc4 {[%clk 0:00:11]}  Rxg3 {[%clk 0:00:19]} 37. Ne4+ {[%clk 0:00:12]}  Ke7 {[%clk 0:00:19]} 38. Nxg3 {[%clk 0:00:13]}  g6 {[%clk 0:00:18]} 39. Rc5 {[%clk 0:00:12]}  Kd6 {[%clk 0:00:17]} 40. Ne4+ {[%clk 0:00:12]}  Kd7 {[%clk 0:00:15]} 41. Nf6+ {[%clk 0:00:13]}  Kd6 {[%clk 0:00:15]} 42. Nxh7 {[%clk 0:00:14]}  Nd5 {[%clk 0:00:14]} 43. Ra5 {[%clk 0:00:12]}  Nc7 {[%clk 0:00:14]} 44. Ng5 {[%clk 0:00:11]}  f6 {[%clk 0:00:14]} 45. Ne4+ {[%clk 0:00:12]}  Ke7 {[%clk 0:00:14]} 46. Rc5 {[%clk 0:00:12]}  Nd5 {[%clk 0:00:14]} 47. Rc6 {[%clk 0:00:11]}  a5 {[%clk 0:00:12]} 48. Ra6 {[%clk 0:00:11]}  a4 {[%clk 0:00:13]} 49. Nc5 {[%clk 0:00:10]}  Nc7 {[%clk 0:00:11]} 50. Ra7 {[%clk 0:00:11]}  Kd6 {[%clk 0:00:11]} 51. Rxa4 {[%clk 0:00:11]}  f5 {[%clk 0:00:10]} 52. Na6 {[%clk 0:00:11]}  Nd5 {[%clk 0:00:10]} 53. Nb4 {[%clk 0:00:11]}  Nb6+ {[%clk 0:00:10]} 54. Kb5 {[%clk 0:00:12]}  Nxa4 {[%clk 0:00:10]} 55. Kxa4 {[%clk 0:00:13]}  g5 {[%clk 0:00:10]} 56. Kb3 {[%clk 0:00:14]}  g4 {[%clk 0:00:11]} 57. Nc2 {[%clk 0:00:11]}  Kd5 {[%clk 0:00:11]} 58. Kc3 {[%clk 0:00:11]}  Ke4 {[%clk 0:00:11]} 59. Kd2 {[%clk 0:00:11]}  g3 {[%clk 0:00:10]} 60. Ne3 {[%clk 0:00:08]}  Kxd4 {[%clk 0:00:08]} 61. Ng2 {[%clk 0:00:08]}  Ke4 {[%clk 0:00:08]} 62. Ke2 {[%clk 0:00:09]}  f4 {[%clk 0:00:08]} 63. Ne1 {[%clk 0:00:10]}  g2 {[%clk 0:00:07]} 64. Nf3 {[%clk 0:00:10]}  e5 {[%clk 0:00:06]} 65. Ng1 {[%clk 0:00:10]}  Kd4 {[%clk 0:00:05]} 66. Kf3 {[%clk 0:00:10]}  Kd3 {[%clk 0:00:05]} 67. Kxg2 {[%clk 0:00:11]}  e4 {[%clk 0:00:05]} 68. Kf1 {[%clk 0:00:11]}  f3 {[%clk 0:00:05]} 69. Nxf3 {[%clk 0:00:09]}  exf3 {[%clk 0:00:05]} 70. Kf2 {[%clk 0:00:10]}  Ke4 {[%clk 0:00:05]} 71. Kf1 {[%clk 0:00:10]}  Kf4 {[%clk 0:00:05]} 72. Kf2 {[%clk 0:00:11]}  Ke4 {[%clk 0:00:06]} 73. Kf1 {[%clk 0:00:11]}  Kf5 {[%clk 0:00:06]} 74. Kf2 {[%clk 0:00:12]}  Kg4 {[%clk 0:00:07]} 75. Kf1 {[%clk 0:00:13]}  Kg3 {[%clk 0:00:07]} 76. Kg1 {[%clk 0:00:13]}  Kg4 {[%clk 0:00:07]} 77. Kf2 {[%clk 0:00:13]}  Kf4 {[%clk 0:00:08]} 78. Kf1 {[%clk 0:00:14]}  Ke3 {[%clk 0:00:08]} 79. Ke1 {[%clk 0:00:14]}  f2+ {[%clk 0:00:09]} 80. Kf1 {[%clk 0:00:14]}  Ke4 {[%clk 0:00:10]} 81. Kxf2 {[%clk 0:00:14]} 1/2-1/2


[Site "https://www.chess.com"]

[Event "Titled Tuesday Blitz November 22 Late 2022"]
[White "Cortes Orihuela, Javier"]
[Black "Roque Sola, Gisela"]
[WhiteFideId "3414329"]
[BlackFideId "5120241"]
[WhiteElo "2080"]
[BlackElo "1961"]
[Result "0-1"]
[Round "03"]
[TimeControl "180+1"]
[Date "2022.11.23"]
[WhiteClock "0:00:02"]
[BlackClock "0:00:13"]

1. d4 {[%clk 0:03:00]}  Nf6 {[%clk 0:02:58]} 2. c4 {[%clk 0:03:00]}  e6 {[%clk 0:02:56]} 3. g3 {[%clk 0:03:00]}  d5 {[%clk 0:02:56]} 4. Nf3 {[%clk 0:03:01]}  Be7 {[%clk 0:02:56]} 5. Bg2 {[%clk 0:03:01]}  O-O {[%clk 0:02:57]} 6. O-O {[%clk 0:03:01]}  dxc4 {[%clk 0:02:57]} 7. Nc3 {[%clk 0:03:00]}  c5 {[%clk 0:02:18]} 8. dxc5 {[%clk 0:02:55]}  Bxc5 {[%clk 0:02:16]} 9. Qxd8 {[%clk 0:02:47]}  Rxd8 {[%clk 0:02:15]} 10. Bg5 {[%clk 0:02:47]}  Nc6 {[%clk 0:02:13]} 11. Bxf6 {[%clk 0:02:34]}  gxf6 {[%clk 0:02:12]} 12. Ne4 {[%clk 0:02:34]}  Be7 {[%clk 0:02:10]} 13. Rac1 {[%clk 0:02:29]}  f5 {[%clk 0:02:07]} 14. Ned2 {[%clk 0:02:27]}  Bf6 {[%clk 0:02:01]} 15. Nxc4 {[%clk 0:02:24]}  e5 {[%clk 0:01:53]} 16. Rfd1 {[%clk 0:02:17]}  Be6 {[%clk 0:01:51]} 17. b3 {[%clk 0:02:02]}  e4 {[%clk 0:01:40]} 18. Nfd2 {[%clk 0:01:53]}  b5 {[%clk 0:01:35]} 19. Ne3 {[%clk 0:01:48]}  Nd4 {[%clk 0:01:34]} 20. Bf1 {[%clk 0:01:44]}  Rac8 {[%clk 0:01:27]} 21. Rxc8 {[%clk 0:01:38]}  Rxc8 {[%clk 0:01:26]} 22. Nb1 {[%clk 0:01:14]}  a6 {[%clk 0:01:02]} 23. Na3 {[%clk 0:00:44]}  Kf8 {[%clk 0:00:59]} 24. Kg2 {[%clk 0:00:32]}  Ke7 {[%clk 0:00:58]} 25. f3 {[%clk 0:00:24]}  h5 {[%clk 0:00:40]} 26. fxe4 {[%clk 0:00:23]}  fxe4 {[%clk 0:00:40]} 27. Kf2 {[%clk 0:00:24]}  h4 {[%clk 0:00:39]} 28. Bg2 {[%clk 0:00:24]}  hxg3+ {[%clk 0:00:37]} 29. hxg3 {[%clk 0:00:25]}  Nf5 {[%clk 0:00:34]} 30. Nxf5+ {[%clk 0:00:14]}  Bxf5 {[%clk 0:00:35]} 31. Nb1 {[%clk 0:00:13]}  Rc2 {[%clk 0:00:31]} 32. Nd2 {[%clk 0:00:12]}  Rxa2 {[%clk 0:00:30]} 33. Nxe4 {[%clk 0:00:12]}  Be5 {[%clk 0:00:20]} 34. Rd3 {[%clk 0:00:10]}  Bc7 {[%clk 0:00:18]} 35. Rc3 {[%clk 0:00:09]}  Bb6+ {[%clk 0:00:18]} 36. Kf3 {[%clk 0:00:08]}  Bxe4+ {[%clk 0:00:16]} 37. Kxe4 {[%clk 0:00:08]}  Rxe2+ {[%clk 0:00:17]} 38. Kf3 {[%clk 0:00:08]}  Rf2+ {[%clk 0:00:18]} 39. Kg4 {[%clk 0:00:08]}  Rxg2 {[%clk 0:00:18]} 40. Rc6 {[%clk 0:00:08]}  Bd4 {[%clk 0:00:16]} 41. Rxa6 {[%clk 0:00:07]}  b4 {[%clk 0:00:16]} 42. Kf3 {[%clk 0:00:04]}  Rb2 {[%clk 0:00:14]} 43. Ke4 {[%clk 0:00:05]}  Bc3 {[%clk 0:00:14]} 44. Kd5 {[%clk 0:00:04]}  Rxb3 {[%clk 0:00:15]} 45. g4 {[%clk 0:00:05]}  Rb2 {[%clk 0:00:15]} 46. g5 {[%clk 0:00:05]}  Rd2+ {[%clk 0:00:15]} 47. Ke4 {[%clk 0:00:04]}  Rg2 {[%clk 0:00:15]} 48. Kf5 {[%clk 0:00:03]}  Rf2+ {[%clk 0:00:15]} 49. Ke4 {[%clk 0:00:03]}  Bd2 {[%clk 0:00:16]} 50. Ra5 {[%clk 0:00:02]}  Rg2 {[%clk 0:00:15]} 51. Ra7+ {[%clk 0:00:02]}  Kf8 {[%clk 0:00:14]} 52. Ra8+ {[%clk 0:00:01]}  Kg7 {[%clk 0:00:14]} 53. Rd8 {[%clk 0:00:02]}  Bxg5 {[%clk 0:00:13]} 0-1


[Site "https://www.chess.com"]

[Event "Titled Tuesday Blitz November 22 Late 2022"]
[White "Curtis, John"]
[Black "Dudzinski, Pawel"]
[WhiteFideId "3200256"]
[BlackFideId "1117890"]
[WhiteElo "2203"]
[BlackElo "2086"]
[Result "1-0"]
[Round "03"]
[TimeControl "180+1"]
[Date "2022.11.23"]
[WhiteClock "0:00:17"]
[BlackClock "0:00:03"]

1. Nf3 {[%clk 0:02:59]}  g6 {[%clk 0:02:57]} 2. g3 {[%clk 0:02:58]}  Bg7 {[%clk 0:02:56]} 3. Bg2 {[%clk 0:02:59]}  f5 {[%clk 0:02:54]} 4. O-O {[%clk 0:02:57]}  e5 {[%clk 0:02:54]} 5. d3 {[%clk 0:02:53]}  Nc6 {[%clk 0:02:54]} 6. c4 {[%clk 0:02:52]}  d6 {[%clk 0:02:50]} 7. Nc3 {[%clk 0:02:52]}  h6 {[%clk 0:02:50]} 8. Rb1 {[%clk 0:02:50]}  Be6 {[%clk 0:02:50]} 9. Bd2 {[%clk 0:02:46]}  Nf6 {[%clk 0:02:46]} 10. b4 {[%clk 0:02:41]}  Rb8 {[%clk 0:02:32]} 11. b5 {[%clk 0:02:40]}  Ne7 {[%clk 0:02:31]} 12. Qa4 {[%clk 0:02:34]}  O-O {[%clk 0:02:25]} 13. Qxa7 {[%clk 0:02:29]}  e4 {[%clk 0:02:19]} 14. Nd4 {[%clk 0:02:27]}  Bf7 {[%clk 0:02:19]} 15. Qa3 {[%clk 0:02:23]}  Ra8 {[%clk 0:01:47]} 16. Qb3 {[%clk 0:02:12]}  d5 {[%clk 0:01:47]} 17. c5 {[%clk 0:01:57]}  Ng4 {[%clk 0:01:35]} 18. e3 {[%clk 0:01:47]}  Ne5 {[%clk 0:01:23]} 19. dxe4 {[%clk 0:01:45]}  dxe4 {[%clk 0:01:20]} 20. Qc2 {[%clk 0:01:26]}  Nd3 {[%clk 0:01:21]} 21. a4 {[%clk 0:01:17]}  Nxc5 {[%clk 0:01:12]} 22. Rfd1 {[%clk 0:01:09]}  Nd3 {[%clk 0:01:11]} 23. Nde2 {[%clk 0:01:02]}  g5 {[%clk 0:01:10]} 24. Be1 {[%clk 0:01:00]}  Nxe1 {[%clk 0:01:04]} 25. Rxe1 {[%clk 0:01:00]}  Bc4 {[%clk 0:00:53]} 26. Red1 {[%clk 0:00:58]}  Bd3 {[%clk 0:00:49]} 27. Qb3+ {[%clk 0:00:57]}  Kh8 {[%clk 0:00:49]} 28. Nc1 {[%clk 0:00:53]}  Ra7 {[%clk 0:00:24]} 29. Nxd3 {[%clk 0:00:52]}  exd3 {[%clk 0:00:25]} 30. b6 {[%clk 0:00:48]}  cxb6 {[%clk 0:00:24]} 31. Nb5 {[%clk 0:00:48]}  Ra5 {[%clk 0:00:23]} 32. Rxd3 {[%clk 0:00:48]}  Qe8 {[%clk 0:00:17]} 33. Bxb7 {[%clk 0:00:41]}  Qg6 {[%clk 0:00:16]} 34. Rd7 {[%clk 0:00:38]}  Qf6 {[%clk 0:00:11]} 35. Rd6 {[%clk 0:00:36]}  Qe5 {[%clk 0:00:10]} 36. Rbd1 {[%clk 0:00:33]}  f4 {[%clk 0:00:06]} 37. Re6 {[%clk 0:00:31]}  Qf5 {[%clk 0:00:06]} 38. e4 {[%clk 0:00:23]}  Qg4 {[%clk 0:00:05]} 39. Rxe7 {[%clk 0:00:19]}  f3 {[%clk 0:00:04]} 40. e5 {[%clk 0:00:18]}  Qh3 {[%clk 0:00:04]} 41. Bxf3 {[%clk 0:00:18]}  Qf5 {[%clk 0:00:03]} 42. Rxg7 {[%clk 0:00:17]} 1-0


[Site "https://www.chess.com"]

[Event "Titled Tuesday Blitz November 22 Late 2022"]
[White "D`Arruda, Ricardo D."]
[Black "Steinberg, Nitzan"]
[WhiteFideId "100692"]
[BlackFideId "2801795"]
[WhiteElo "2524"]
[BlackElo "2867"]
[Result "0-1"]
[Round "03"]
[TimeControl "180+1"]
[Date "2022.11.23"]
[WhiteClock "0:00:12"]
[BlackClock "0:00:55"]

1. d4 {[%clk 0:03:00]}  Nf6 {[%clk 0:02:59]} 2. Nf3 {[%clk 0:03:00]}  g6 {[%clk 0:03:00]} 3. g3 {[%clk 0:03:00]}  Bg7 {[%clk 0:03:00]} 4. Nc3 {[%clk 0:03:00]}  O-O {[%clk 0:03:01]} 5. e4 {[%clk 0:02:59]}  d6 {[%clk 0:03:02]} 6. Bg2 {[%clk 0:02:59]}  c6 {[%clk 0:03:02]} 7. O-O {[%clk 0:02:58]}  Qc7 {[%clk 0:03:02]} 8. h3 {[%clk 0:02:57]}  e5 {[%clk 0:03:02]} 9. dxe5 {[%clk 0:02:52]}  dxe5 {[%clk 0:03:02]} 10. Be3 {[%clk 0:02:52]}  a5 {[%clk 0:02:53]} 11. a4 {[%clk 0:02:50]}  Na6 {[%clk 0:02:53]} 12. Qe2 {[%clk 0:02:47]}  Nb4 {[%clk 0:02:49]} 13. Rac1 {[%clk 0:02:21]}  b6 {[%clk 0:02:49]} 14. Nd2 {[%clk 0:02:21]}  Ba6 {[%clk 0:02:48]} 15. Nc4 {[%clk 0:02:21]}  b5 {[%clk 0:02:39]} 16. axb5 {[%clk 0:02:18]}  cxb5 {[%clk 0:02:39]} 17. Nb6 {[%clk 0:02:06]}  Rab8 {[%clk 0:02:34]} 18. Nbd5 {[%clk 0:02:03]}  Nbxd5 {[%clk 0:02:30]} 19. Nxd5 {[%clk 0:02:02]}  Nxd5 {[%clk 0:02:30]} 20. exd5 {[%clk 0:02:03]}  Qd6 {[%clk 0:02:26]} 21. Rfd1 {[%clk 0:02:02]}  b4 {[%clk 0:02:25]} 22. Qd2 {[%clk 0:02:02]}  Rfc8 {[%clk 0:02:24]} 23. c4 {[%clk 0:01:55]}  Bxc4 {[%clk 0:02:20]} 24. Bh6 {[%clk 0:01:39]}  Bh8 {[%clk 0:02:12]} 25. Ra1 {[%clk 0:01:38]}  Ra8 {[%clk 0:02:06]} 26. Qe1 {[%clk 0:01:16]}  a4 {[%clk 0:02:04]} 27. Bd2 {[%clk 0:01:16]}  Rcb8 {[%clk 0:02:01]} 28. Rdc1 {[%clk 0:01:06]}  Bxd5 {[%clk 0:02:01]} 29. Bxd5 {[%clk 0:01:03]}  Qxd5 {[%clk 0:02:02]} 30. Bxb4 {[%clk 0:01:02]}  Qe6 {[%clk 0:01:52]} 31. Kh2 {[%clk 0:01:00]}  h5 {[%clk 0:01:52]} 32. h4 {[%clk 0:01:00]}  Bf6 {[%clk 0:01:52]} 33. Bc3 {[%clk 0:00:59]}  Rc8 {[%clk 0:01:51]} 34. Qe4 {[%clk 0:00:54]}  Qc4 {[%clk 0:01:51]} 35. Qf3 {[%clk 0:00:31]}  Qc6 {[%clk 0:01:51]} 36. Qe3 {[%clk 0:00:27]}  Qb7 {[%clk 0:01:35]} 37. Re1 {[%clk 0:00:27]}  Re8 {[%clk 0:01:29]} 38. Re2 {[%clk 0:00:25]}  Qb5 {[%clk 0:01:23]} 39. Qe4 {[%clk 0:00:25]}  Kg7 {[%clk 0:01:15]} 40. Rd2 {[%clk 0:00:25]}  Qb3 {[%clk 0:01:09]} 41. Rd5 {[%clk 0:00:21]}  a3 {[%clk 0:01:10]} 42. Bxe5 {[%clk 0:00:15]}  Bxe5 {[%clk 0:00:54]} 43. Rxe5 {[%clk 0:00:15]}  Qxb2 {[%clk 0:00:53]} 44. Rxe8 {[%clk 0:00:13]}  Rxe8 {[%clk 0:00:54]} 45. Qxe8 {[%clk 0:00:12]}  Qxa1 {[%clk 0:00:55]} 0-1


[Site "https://www.chess.com"]

[Event "Titled Tuesday Blitz November 22 Late 2022"]
[White "Dardha, Daniel"]
[Black "Kalogeris, Ioannis"]
[WhiteFideId "240990"]
[BlackFideId "4239563"]
[WhiteElo "2872"]
[BlackElo "2526"]
[Result "0-1"]
[Round "03"]
[TimeControl "180+1"]
[Date "2022.11.23"]
[WhiteClock "0:01:19"]
[BlackClock "0:01:35"]

1. d4 {[%clk 0:02:53]}  d5 {[%clk 0:02:59]} 2. Qd3 {[%clk 0:02:53]}  Nf6 {[%clk 0:02:59]} 3. e4 {[%clk 0:02:46]}  Nxe4 {[%clk 0:02:57]} 4. Nf3 {[%clk 0:02:39]}  Nd6 {[%clk 0:02:43]} 5. Nc3 {[%clk 0:02:38]}  Bf5 {[%clk 0:02:42]} 6. Qd1 {[%clk 0:02:37]}  e6 {[%clk 0:02:42]} 7. Bf4 {[%clk 0:02:37]}  Be7 {[%clk 0:02:40]} 8. Bd3 {[%clk 0:02:36]}  O-O {[%clk 0:02:39]} 9. Bxd6 {[%clk 0:02:36]}  Qxd6 {[%clk 0:02:31]} 10. Bxf5 {[%clk 0:02:36]}  exf5 {[%clk 0:02:31]} 11. O-O {[%clk 0:02:31]}  c6 {[%clk 0:02:29]} 12. Qd3 {[%clk 0:02:31]}  g6 {[%clk 0:02:28]} 13. Rfe1 {[%clk 0:02:31]}  Bf6 {[%clk 0:02:26]} 14. Ne2 {[%clk 0:02:29]}  Nd7 {[%clk 0:02:26]} 15. h4 {[%clk 0:02:19]}  Rfe8 {[%clk 0:02:26]} 16. Ng3 {[%clk 0:02:16]}  Re6 {[%clk 0:02:21]} 17. Rxe6 {[%clk 0:02:15]}  fxe6 {[%clk 0:02:21]} 18. c3 {[%clk 0:02:13]}  e5 {[%clk 0:02:19]} 19. dxe5 {[%clk 0:02:14]}  Nxe5 {[%clk 0:02:19]} 20. Nxe5 {[%clk 0:02:14]}  Qxe5 {[%clk 0:02:19]} 21. Nf1 {[%clk 0:02:08]}  Bxh4 {[%clk 0:02:17]} 22. c4 {[%clk 0:02:06]}  Bxf2+ {[%clk 0:02:13]} 23. Kxf2 {[%clk 0:01:59]}  Qxb2+ {[%clk 0:02:12]} 24. Kg1 {[%clk 0:01:55]}  Qxa1 {[%clk 0:02:11]} 25. cxd5 {[%clk 0:01:56]}  c5 {[%clk 0:02:07]} 26. Kh2 {[%clk 0:01:51]}  Qe5+ {[%clk 0:02:04]} 27. Ng3 {[%clk 0:01:50]}  Rd8 {[%clk 0:02:03]} 28. Qb5 {[%clk 0:01:48]}  Qxd5 {[%clk 0:02:03]} 29. Qa5 {[%clk 0:01:47]}  a6 {[%clk 0:02:00]} 30. Qc7 {[%clk 0:01:45]}  Rd7 {[%clk 0:01:56]} 31. Qb8+ {[%clk 0:01:44]}  Kg7 {[%clk 0:01:56]} 32. Qf4 {[%clk 0:01:42]}  Re7 {[%clk 0:01:55]} 33. Qg5 {[%clk 0:01:41]}  Kf7 {[%clk 0:01:49]} 34. Qh4 {[%clk 0:01:39]}  Ke8 {[%clk 0:01:49]} 35. Qa4+ {[%clk 0:01:38]}  Qc6 {[%clk 0:01:47]} 36. Qf4 {[%clk 0:01:37]}  Kd7 {[%clk 0:01:46]} 37. Qb8 {[%clk 0:01:37]}  f4 {[%clk 0:01:44]} 38. Qxf4 {[%clk 0:01:36]}  Qd6 {[%clk 0:01:44]} 39. Qg4+ {[%clk 0:01:36]}  Kc7 {[%clk 0:01:45]} 40. Qg5 {[%clk 0:01:35]}  Re5 {[%clk 0:01:39]} 41. Qg4 {[%clk 0:01:25]}  Re3 {[%clk 0:01:36]} 42. Qf4 {[%clk 0:01:19]}  Qxf4 {[%clk 0:01:35]} 0-1


[Site "https://www.chess.com"]

[Event "Titled Tuesday Blitz November 22 Late 2022"]
[White "De Souza, Cristiano Gomes"]
[Black "Reprintsev, Alexander"]
[WhiteFideId "2151758"]
[BlackFideId "14100541"]
[WhiteElo "2068"]
[BlackElo "2230"]
[Result "0-1"]
[Round "03"]
[TimeControl "180+1"]
[Date "2022.11.23"]
[WhiteClock "0:00:23"]
[BlackClock "0:00:22"]

1. d4 {[%clk 0:03:00]}  d5 {[%clk 0:02:55]} 2. c4 {[%clk 0:03:00]}  e5 {[%clk 0:02:54]} 3. dxe5 {[%clk 0:03:00]}  d4 {[%clk 0:02:50]} 4. Nf3 {[%clk 0:03:00]}  Nc6 {[%clk 0:02:50]} 5. g3 {[%clk 0:03:00]}  Nge7 {[%clk 0:02:50]} 6. Bg2 {[%clk 0:02:59]}  Ng6 {[%clk 0:02:51]} 7. O-O {[%clk 0:02:58]}  Ngxe5 {[%clk 0:02:51]} 8. Nbd2 {[%clk 0:02:58]}  Nxf3+ {[%clk 0:02:50]} 9. Nxf3 {[%clk 0:02:58]}  Be7 {[%clk 0:02:51]} 10. b3 {[%clk 0:02:57]}  O-O {[%clk 0:02:49]} 11. Bb2 {[%clk 0:02:58]}  Bf6 {[%clk 0:02:49]} 12. Qd2 {[%clk 0:02:57]}  Qe7 {[%clk 0:02:13]} 13. a4 {[%clk 0:02:51]}  Rd8 {[%clk 0:02:11]} 14. Rfe1 {[%clk 0:02:49]}  a5 {[%clk 0:02:10]} 15. Rad1 {[%clk 0:02:34]}  Bg4 {[%clk 0:02:09]} 16. h3 {[%clk 0:02:11]}  Bh5 {[%clk 0:02:05]} 17. g4 {[%clk 0:02:04]}  Bg6 {[%clk 0:02:05]} 18. g5 {[%clk 0:02:01]}  Be5 {[%clk 0:02:04]} 19. Nxe5 {[%clk 0:01:56]}  Qxe5 {[%clk 0:01:55]} 20. f4 {[%clk 0:01:42]}  Qe6 {[%clk 0:01:40]} 21. Kh2 {[%clk 0:01:20]}  Be4 {[%clk 0:01:40]} 22. Rg1 {[%clk 0:00:55]}  Bxg2 {[%clk 0:01:37]} 23. Rxg2 {[%clk 0:00:55]}  Rd6 {[%clk 0:01:23]} 24. Rf1 {[%clk 0:00:52]}  Re8 {[%clk 0:01:21]} 25. f5 {[%clk 0:00:51]}  Qe3 {[%clk 0:01:16]} 26. Qxe3 {[%clk 0:00:48]}  Rxe3 {[%clk 0:01:17]} 27. Rf3 {[%clk 0:00:47]}  Ne7 {[%clk 0:01:09]} 28. Rgf2 {[%clk 0:00:36]}  Rxf3 {[%clk 0:00:58]} 29. Rxf3 {[%clk 0:00:35]}  c5 {[%clk 0:00:59]} 30. Kg3 {[%clk 0:00:26]}  f6 {[%clk 0:00:58]} 31. h4 {[%clk 0:00:25]}  Kf7 {[%clk 0:00:58]} 32. Kf4 {[%clk 0:00:23]}  Nc6 {[%clk 0:00:56]} 33. e4 {[%clk 0:00:19]}  d3 {[%clk 0:00:54]} 34. Rf1 {[%clk 0:00:17]}  d2 {[%clk 0:00:46]} 35. Rd1 {[%clk 0:00:17]}  Rd3 {[%clk 0:00:45]} 36. h5 {[%clk 0:00:15]}  h6 {[%clk 0:00:35]} 37. g6+ {[%clk 0:00:15]}  Ke7 {[%clk 0:00:34]} 38. e5 {[%clk 0:00:14]}  fxe5+ {[%clk 0:00:13]} 39. Bxe5 {[%clk 0:00:13]}  Nxe5 {[%clk 0:00:12]} 40. Kxe5 {[%clk 0:00:13]}  Rd4 {[%clk 0:00:11]} 41. f6+ {[%clk 0:00:11]}  gxf6+ {[%clk 0:00:11]} 42. Kf5 {[%clk 0:00:11]}  b6 {[%clk 0:00:11]} 43. g7 {[%clk 0:00:11]}  Kf7 {[%clk 0:00:11]} 44. g8=Q+ {[%clk 0:00:12]}  Kxg8 {[%clk 0:00:11]} 45. Kxf6 {[%clk 0:00:12]}  Kh7 {[%clk 0:00:11]} 46. Ke6 {[%clk 0:00:12]}  Rd3 {[%clk 0:00:12]} 47. Ke5 {[%clk 0:00:12]}  Kg7 {[%clk 0:00:12]} 48. Ke4 {[%clk 0:00:12]}  Rd4+ {[%clk 0:00:12]} 49. Ke3 {[%clk 0:00:12]}  Kf6 {[%clk 0:00:13]} 50. Rxd2 {[%clk 0:00:13]}  Rxd2 {[%clk 0:00:13]} 51. Kxd2 {[%clk 0:00:13]}  Kg5 {[%clk 0:00:14]} 52. Kd3 {[%clk 0:00:14]}  Kxh5 {[%clk 0:00:14]} 53. Ke4 {[%clk 0:00:14]}  Kg4 {[%clk 0:00:15]} 54. Kd5 {[%clk 0:00:15]}  h5 {[%clk 0:00:16]} 55. Kc6 {[%clk 0:00:15]}  h4 {[%clk 0:00:16]} 56. Kxb6 {[%clk 0:00:16]}  h3 {[%clk 0:00:17]} 57. Kxa5 {[%clk 0:00:16]}  h2 {[%clk 0:00:18]} 58. Kb5 {[%clk 0:00:17]}  h1=Q {[%clk 0:00:18]} 59. Kxc5 {[%clk 0:00:18]}  Qb7 {[%clk 0:00:18]} 60. b4 {[%clk 0:00:17]}  Kf5 {[%clk 0:00:19]} 61. b5 {[%clk 0:00:18]}  Ke6 {[%clk 0:00:20]} 62. Kb4 {[%clk 0:00:18]}  Kd6 {[%clk 0:00:19]} 63. c5+ {[%clk 0:00:19]}  Kd5 {[%clk 0:00:20]} 64. c6 {[%clk 0:00:19]}  Qe7+ {[%clk 0:00:20]} 65. Ka5 {[%clk 0:00:19]}  Kc5 {[%clk 0:00:20]} 66. Ka6 {[%clk 0:00:19]}  Qc7 {[%clk 0:00:20]} 67. a5 {[%clk 0:00:19]}  Kb4 {[%clk 0:00:20]} 68. b6 {[%clk 0:00:19]}  Qxc6 {[%clk 0:00:21]} 69. Ka7 {[%clk 0:00:20]}  Kxa5 {[%clk 0:00:20]} 70. b7 {[%clk 0:00:20]}  Qb6+ {[%clk 0:00:20]} 71. Kb8 {[%clk 0:00:21]}  Ka6 {[%clk 0:00:20]} 72. Kc8 {[%clk 0:00:21]}  Qxb7+ {[%clk 0:00:20]} 73. Kd8 {[%clk 0:00:22]}  Kb6 {[%clk 0:00:21]} 74. Ke8 {[%clk 0:00:22]}  Kc6 {[%clk 0:00:22]} 75. Kf8 {[%clk 0:00:23]}  Kd6 {[%clk 0:00:22]} 0-1


[Site "https://www.chess.com"]